fUST/lending_fUST_20250520
["ID","MTS","AMOUNT","RATE_DAILY","PERIOD"]
[361749703,1747755045988,-430.0,0.00019178,2]
[361749704,1747755045998,-430.0,0.00019178,2]
[361749705,1747755046008,-430.0,0.00019178,2]
[361749706,1747755046019,-430.0,0.00019178,2]
[361749707,1747755046029,-430.0,0.00019178,2]
[361749708,1747755046039,-430.0,0.00019178,2]
[361749710,1747755046049,-430.0,0.00019178,2]
[361749712,1747755046058,-430.0,0.00019178,2]
[361749713,1747755046068,-430.0,0.00019178,2]
[361749715,1747755046078,-430.0,0.00019178,2]
[361749716,1747755046087,-1298.05,0.00019178,2]
[361749717,1747755046097,-430.0,0.00019178,2]
[361749719,1747755046107,-999.51,0.00019178,2]
[361749721,1747755046117,-1159.8,0.00019178,2]
[361749723,1747755046128,-939.83,0.00019178,2]
[361749725,1747755046138,-671.82,0.00019178,2]
[361749727,1747755046149,-155.0,0.00019178,2]
[361749728,1747755046164,-881.98429,0.00019178,2]
[361749729,1747755046179,-151.0,0.00019233,2]
[361749730,1747755046194,-151.0,0.00019233,2]
[361749731,1747755046205,-2500.0,0.00019234,2]
[361749733,1747755046217,-500.0,0.00019269,2]
[361749735,1747755046232,-151.0,0.00019276,2]
[361749737,1747755046245,-151.0,0.00019276,2]
[361749740,1747755046259,-151.0,0.00019276,2]
[361749742,1747755046273,-289.99107984,0.00019318,2]
[361749743,1747755046286,-151.0,0.00019329,2]
[361749745,1747755046299,-591.528255,0.00019329,2]
[361749746,1747755046314,-591.528255,0.00019329,2]
[361749748,1747755046326,-243.960544,0.00019329,2]
[361749749,1747755046338,-243.960544,0.00019329,2]
[361749750,1747755046351,-151.0,0.00019329,2]
[361749751,1747755046367,-185.7911,0.00019329,2]
[361749752,1747755046382,-384.81183,0.00019329,2]
[361749753,1747755046395,-384.81183,0.00019329,2]
[361749754,1747755046408,-151.0,0.00019329,2]
[361749755,1747755046420,-47495.27196196,0.00019329,2]
[361749756,1747755046431,-6334.65093418,0.00019349,2]
[361749757,1747755046635,-14041.11611569,0.00019349,2]
[361749758,1747755046647,-2500.0,0.00019349,2]
[361749759,1747755046659,-2500.0,0.0001935,2]
[361749760,1747755046671,-6242.69140111,0.00019383,2]
[361749761,1747755046683,-151.0,0.00019452,2]
[361749762,1747755046694,-151.0,0.00019452,2]
[361749763,1747755046706,-153.059945,0.00019452,2]
[361749764,1747755046717,-151.0,0.00019452,2]
[361749765,1747755046730,-160.054512,0.00019452,2]
[361749766,1747755046742,-180.316538,0.00019452,2]
[361749767,1747755046755,-160.054512,0.00019452,2]
[361749768,1747755046768,-434.61,0.00019452,2]
[361749769,1747755046779,-443.68,0.00019452,2]
[361749770,1747755046792,-1103.97,0.00019452,2]
[361749771,1747755046804,-786.0,0.00019452,2]
[361749772,1747755046816,-461.04,0.00019452,2]
[361749773,1747755046827,-485.08,0.00019452,2]
[361749774,1747755046839,-430.0,0.00019452,2]
[361749775,1747755046851,-430.0,0.00019452,2]
[361749776,1747755046863,-883.66,0.00019452,2]
[361749777,1747755046876,-430.0,0.00019452,2]
[361749778,1747755046889,-652.261682,0.00019452,2]
[361749779,1747755046900,-518.35,0.00019452,2]
[361749780,1747755046912,-652.261682,0.00019452,2]
[361749781,1747755046924,-151.0,0.00019452,2]
[361749782,1747755046936,-718.51,0.00019452,2]
[361749783,1747755046948,-1100.229447,0.00019452,2]
[361749784,1747755046960,-1100.229447,0.00019452,2]
[361749785,1747755046972,-5283.52,0.00019452,2]
[361749786,1747755046985,-430.0,0.00019452,2]
[361749787,1747755046998,-430.0,0.00019452,2]
[361749788,1747755047012,-151.0,0.00019452,2]
[361749789,1747755047025,-288.94,0.00019452,2]
[361749790,1747755047037,-430.0,0.00019452,2]
[361749791,1747755047050,-980.83,0.00019452,2]
[361749792,1747755047062,-430.0,0.00019452,2]
[361749793,1747755047071,-536.45,0.00019452,2]
[361749794,1747755047082,-151.0,0.00019452,2]
[361749795,1747755047092,-3236.06,0.00019452,2]
[361749796,1747755047101,-430.0,0.00019452,2]
[361749797,1747755047111,-430.0,0.00019452,2]
[361749798,1747755047122,-430.0,0.00019452,2]
[361749799,1747755047132,-1298.05,0.00019452,2]
[361749800,1747755047142,-430.0,0.00019452,2]
[361749801,1747755047151,-430.0,0.00019452,2]
[361749802,1747755047161,-999.51,0.00019452,2]
[361749803,1747755047171,-1159.8,0.00019452,2]
[361749804,1747755047180,-939.83,0.00019452,2]
[361749805,1747755047190,-671.82,0.00019452,2]
[361749806,1747755047200,-151.0,0.000195,2]
[361749807,1747755047211,-500.0,0.0001953,2]
[361749808,1747755047222,-877.502681,0.00019536,2]
[361749809,1747755047232,-2500.0,0.00019549,2]
[361749810,1747755047242,-5000.0,0.00019692,2]
[361749811,1747755047254,-6242.69140111,0.00019693,2]
[361749812,1747755047264,-677.76,0.00019725,2]
[361749813,1747755047274,-151.806303,0.00019726,2]
[361749814,1747755047284,-151.0,0.00019726,2]
[361749815,1747755047295,-434.61,0.00019726,2]
[361749816,1747755047304,-443.68,0.00019726,2]
[361749817,1747755047314,-151.0,0.00019726,2]
[361749818,1747755047323,-151.0,0.00019726,2]
[361749819,1747755047334,-1103.97,0.00019726,2]
[361749820,1747755047344,-786.0,0.00019726,2]
[361749821,1747755047357,-461.04,0.00019726,2]
[361749822,1747755047369,-485.08,0.00019726,2]
[361749823,1747755047381,-430.0,0.00019726,2]
[361749824,1747755047391,-430.0,0.00019726,2]
[361749825,1747755047403,-883.66,0.00019726,2]
[361749826,1747755047413,-430.0,0.00019726,2]
[361749827,1747755047424,-518.35,0.00019726,2]
[361749828,1747755047435,-718.51,0.00019726,2]
[361749829,1747755047445,-5283.52,0.00019726,2]
[361749830,1747755047455,-430.0,0.00019726,2]
[361749831,1747755047471,-430.0,0.00019726,2]
[361749832,1747755047482,-430.0,0.00019726,2]
[361749833,1747755047492,-980.83,0.00019726,2]
[361749834,1747755047502,-430.0,0.00019726,2]
[361749835,1747755047790,-3236.06,0.00019726,2]
[361749836,1747755047807,-430.0,0.00019726,2]
[361749837,1747755047819,-430.0,0.00019726,2]
[361749838,1747755047829,-430.0,0.00019726,2]
[361749839,1747755047839,-1298.05,0.00019726,2]
[361749840,1747755047849,-430.0,0.00019726,2]
[361749841,1747755047860,-177.96,0.00019726,2]
[361749842,1747755047871,-999.51,0.00019726,2]
[361749843,1747755047881,-1159.8,0.00019726,2]
[361749844,1747755047891,-939.83,0.00019726,2]
[361749845,1747755047900,-671.82,0.00019726,2]
[361749846,1747755047911,-3000.0,0.00019782,2]
[361749847,1747755047920,-1000.0,0.00019817,2]
[361749848,1747755047930,-1809.81047999,0.00019898,2]
[361749849,1747755047939,-151.0,0.000199,2]
[361749850,1747755047949,-588.85841343,0.00019951,2]
[361749851,1747755047959,-157.89,0.0002,2]
[361749852,1747755047969,-1000.0,0.0002,3]
[361749853,1747755047979,-1000.0,0.0002,2]
[361749854,1747755047988,-151.5763076,0.0002,2]
[361749855,1747755047998,-434.61,0.0002,2]
[361749856,1747755048008,-369.04069531,0.0002,2]
[361749857,1747755048018,-363.19242247,0.0002,2]
[361749858,1747755048027,-443.68,0.0002,2]
[361749859,1747755048037,-1103.97,0.0002,2]
[361749860,1747755048047,-786.0,0.0002,2]
[361749861,1747755048056,-461.04,0.0002,2]
[361749862,1747755048066,-485.08,0.0002,2]
[361749863,1747755048076,-430.0,0.0002,2]
[361749864,1747755048085,-430.0,0.0002,2]
[361749865,1747755048095,-883.66,0.0002,2]
[361749866,1747755048107,-430.0,0.0002,2]
[361749867,1747755048116,-518.35,0.0002,2]
[361749868,1747755048127,-718.51,0.0002,2]
[361749869,1747755048137,-5283.52,0.0002,2]
[361749870,1747755048146,-161.19396482,0.0002,2]
[361749871,1747755048157,-1179.41842879,0.0002,2]
[361749872,1747755048166,-359.14133944,0.0002,2]
[361749873,1747755048177,-430.0,0.0002,2]
[361749874,1747755048187,-30000.0,0.0002,2]
[361749875,1747755048197,-1183.64612262,0.0002,2]
[361749876,1747755048207,-430.0,0.0002,2]
[361749877,1747755048217,-67232.47835213,0.0002,2]
[361749878,1747755048227,-1538.20473588,0.0002,2]
[361749879,1747755048237,-430.0,0.0002,2]
[361749880,1747755048247,-980.83,0.0002,2]
[361749881,1747755048256,-541.25,0.0002,2]
[361749882,1747755048266,-3236.06,0.0002,2]
[361749883,1747755048276,-430.0,0.0002,2]
[361749884,1747755048286,-430.0,0.0002,2]
[361749885,1747755048295,-430.0,0.0002,2]
[361749886,1747755048305,-1298.05,0.0002,2]
[361749887,1747755048314,-430.0,0.0002,2]
[361749888,1747755048324,-151.0,0.0002,2]
[361749889,1747755048333,-999.51,0.0002,2]
[361749890,1747755048342,-4000.0,0.0002,4]
[361749891,1747755048352,-1159.8,0.0002,2]
[361749892,1747755048364,-939.83,0.0002,2]
[361749893,1747755048373,-671.82,0.0002,2]
[361749894,1747755048383,-6242.69140111,0.00020003,2]
[361749895,1747755048392,-151.0,0.00020004,2]
[361749896,1747755048402,-384.81183,0.00020007,2]
[361749897,1747755048411,-384.81183,0.00020007,2]
[361749898,1747755048420,-1000.0,0.00020078,2]
[361749899,1747755048430,-1138.24278703,0.00020097,2]
[361749900,1747755048440,-600.0,0.0002016,2]
[361749901,1747755048449,-222.957197,0.00020187,2]
[361749902,1747755048458,-200.0,0.0002026,2]
[361749903,1747755048469,-677.76,0.00020272,2]
[361749904,1747755048478,-151.0,0.00020273,2]
[361749905,1747755048488,-151.0,0.00020273,2]
[361749906,1747755048497,-151.0,0.00020273,2]
[361749907,1747755048506,-151.0,0.00020273,2]
[361749908,1747755048515,-151.0,0.00020273,2]
[361749909,1747755048525,-434.61,0.00020273,2]
[361749910,1747755048534,-443.68,0.00020273,2]
[361749911,1747755048543,-151.0,0.00020273,2]
[361749912,1747755048553,-591.528255,0.00020273,2]
[361749913,1747755048562,-591.528255,0.00020273,2]
[361749914,1747755048571,-151.0,0.00020273,2]
[361749915,1747755048580,-1103.97,0.00020273,2]
[361749916,1747755048590,-786.0,0.00020273,2]
[361749917,1747755048600,-461.04,0.00020273,2]
[361749918,1747755048609,-485.08,0.00020273,2]
[361749919,1747755048618,-505.35143248,0.00020273,2]
[361749920,1747755048628,-430.0,0.00020273,2]
[361749921,1747755048638,-883.66,0.00020273,2]
[361749922,1747755048648,-430.0,0.00020273,2]
[361749923,1747755048657,-652.261682,0.00020273,2]
[361749924,1747755048667,-518.35,0.00020273,2]
[361749925,1747755048676,-652.261682,0.00020273,2]
[361749926,1747755048685,-151.0,0.00020273,2]
[361749927,1747755048695,-718.51,0.00020273,2]
[361749928,1747755048705,-1100.229447,0.00020273,2]
[361749929,1747755048714,-1100.229447,0.00020273,2]
[361749930,1747755048724,-5283.52,0.00020273,2]
[361749931,1747755048734,-430.0,0.00020273,2]
[361749932,1747755048743,-430.0,0.00020273,2]
[361749933,1747755048752,-430.0,0.00020273,2]
[361749934,1747755048762,-980.83,0.00020273,2]
[361749935,1747755048772,-3236.06,0.00020273,2]
[361749936,1747755048782,-430.0,0.00020273,2]
[361749937,1747755048792,-430.0,0.00020273,2]
[361749938,1747755048801,-430.0,0.00020273,2]
[361749939,1747755048810,-1298.05,0.00020273,2]
[361749940,1747755048819,-492.83844325,0.00020273,2]
[361749941,1747755048829,-999.51,0.00020273,2]
[361749942,1747755048838,-1159.8,0.00020273,2]
[361749943,1747755048847,-939.83,0.00020273,2]
[361749944,1747755048856,-671.82,0.00020273,2]
[361749945,1747755048865,-6242.69140111,0.00020314,3]
[361749946,1747755048875,-151.0,0.00020314,2]
[361749947,1747755048884,-151.0,0.00020314,2]
[361749948,1747755048894,-151.0,0.00020314,2]
[361749949,1747755048903,-151.0,0.00020314,2]
[361749950,1747755048913,-243.960544,0.00020314,2]
[361749951,1747755048922,-243.960544,0.00020314,2]
[361749952,1747755048931,-151.0,0.00020329,2]
[361749953,1747755048942,-151.0,0.00020329,2]
[361749954,1747755048951,-2500.0,0.0002033,2]
[361749955,1747755048960,-823.0,0.00020349,2]
[361749956,1747755048969,-823.0,0.00020349,2]
[361749957,1747755048979,-302.60471265,0.00020365,2]
[361749958,1747755048988,-1139.19650197,0.0002037,2]
[361749959,1747755048998,-151.0,0.000204,3]
[361749960,1747755049008,-568.95141787,0.00020427,2]
[361749961,1747755049017,-2500.0,0.00020445,2]
[361749962,1747755049026,-5000.0,0.00020525,2]
[361749963,1747755049036,-434.61,0.00020547,2]
[361749964,1747755049046,-443.68,0.00020547,2]
[361749965,1747755049055,-151.0,0.00020547,2]
[361749966,1747755049065,-180.696086,0.00020547,2]
[361749967,1747755049074,-1103.97,0.00020547,2]
[361749968,1747755049085,-786.0,0.00020547,2]
[361749969,1747755049095,-461.04,0.00020547,2]
[361749970,1747755049105,-485.08,0.00020547,2]
[361749971,1747755049114,-430.0,0.00020547,2]
[361749972,1747755049125,-883.66,0.00020547,2]
[361749973,1747755049135,-430.0,0.00020547,2]
[361749974,1747755049146,-518.35,0.00020547,2]
[361749975,1747755049155,-718.51,0.00020547,2]
[361749976,1747755049164,-5283.52,0.00020547,2]
[361749977,1747755049175,-430.0,0.00020547,2]
[361749978,1747755049185,-178.51,0.00020547,2]
[361749979,1747755049194,-151.0,0.00020547,2]
[361749980,1747755049203,-430.0,0.00020547,2]
[361749981,1747755049212,-980.83,0.00020547,2]
[361749982,1747755049222,-3236.06,0.00020547,2]
[361749983,1747755049231,-430.0,0.00020547,2]
[361749984,1747755049241,-430.0,0.00020547,2]
[361749985,1747755049251,-430.0,0.00020547,2]
[361749986,1747755049260,-1298.05,0.00020547,2]
[361749987,1747755049270,-999.51,0.00020547,2]
[361749988,1747755049279,-1159.8,0.00020547,2]
[361749989,1747755049289,-939.83,0.00020547,2]
[361749990,1747755049299,-671.82,0.00020547,2]
[361749991,1747755049308,-6242.69140111,0.00020624,3]
[361749992,1747755049318,-1500.0,0.00020626,2]
[361749993,1747755049327,-151.0,0.00020626,2]
[361749994,1747755049336,-212.38718278,0.0002063,3]
[361749995,1747755049346,-151.0,0.00020659,2]
[361749996,1747755049358,-568.95141787,0.00020773,2]
[361749997,1747755049368,-677.76,0.0002082,2]
[361749998,1747755049379,-434.61,0.00020821,2]
[361749999,1747755049388,-443.68,0.00020821,2]
[361750000,1747755049399,-1103.97,0.00020821,2]
[361750001,1747755049409,-786.0,0.00020821,2]
[361750002,1747755049418,-461.04,0.00020821,2]
[361750003,1747755049428,-485.08,0.00020821,2]
[361750004,1747755049439,-430.0,0.00020821,2]
[361750005,1747755049450,-883.66,0.00020821,2]
[361750006,1747755049460,-430.0,0.00020821,2]
[361750007,1747755049469,-518.35,0.00020821,2]
[361750008,1747755049478,-718.51,0.00020821,2]
[361750009,1747755049488,-5283.52,0.00020821,2]
[361750010,1747755049499,-430.0,0.00020821,2]
[361750011,1747755049508,-430.0,0.00020821,2]
[361750012,1747755049518,-980.83,0.00020821,2]
[361750013,1747755049528,-3236.06,0.00020821,2]
[361750014,1747755049538,-430.0,0.00020821,2]
[361750015,1747755049548,-169.55,0.00020821,2]
[361750016,1747755049556,-430.0,0.00020821,2]
[361750017,1747755049566,-1298.05,0.00020821,2]
[361750018,1747755049576,-999.51,0.00020821,2]
[361750019,1747755049586,-1159.8,0.00020821,2]
[361750020,1747755049595,-939.83,0.00020821,2]
[361750021,1747755049605,-671.82,0.00020821,2]
[361750022,1747755049615,-6242.69140111,0.00020934,4]
[361750023,1747755049626,-384.81183,0.00020935,2]
[361750024,1747755049635,-384.81183,0.00020935,2]
[361750025,1747755049645,-500.0,0.00020942,2]
[361750026,1747755049655,-500.0,0.00020942,2]
[361750027,1747755049665,-500.0,0.00020942,2]
[361750028,1747755049675,-600.0,0.00020942,2]
[361750029,1747755049684,-500.0,0.00020942,2]
[361750030,1747755049694,-499.96146148,0.00020942,2]
[361750031,1747755049703,-500.0,0.00020942,2]
[361750032,1747755049713,-500.0,0.00020942,2]
[361750033,1747755049722,-500.0,0.00020942,2]
[361750034,1747755049731,-500.0,0.00020942,2]
[361750035,1747755049740,-500.0,0.00020973,2]
[361750036,1747755049750,-500.0,0.00020973,2]
[361750037,1747755049760,-500.0,0.00020973,2]
[361750038,1747755049769,-500.0,0.00020973,2]
[361750039,1747755049779,-500.0,0.00020973,2]
[361750040,1747755049788,-500.0,0.00020973,2]
[361750041,1747755049798,-500.0,0.00020973,2]
[361750042,1747755049808,-500.0,0.00020973,2]
[361750043,1747755049818,-152.21929309,0.00020973,2]
[361750044,1747755049827,-500.0,0.00020973,2]
[361750045,1747755049837,-500.0,0.00020973,2]
[361750046,1747755049846,-160.43817396,0.00020999,2]
[361750047,1747755049856,-677.76,0.00020999,2]
[361750048,1747755049867,-677.76,0.00020999,2]
[361750049,1747755049878,-677.76,0.00020999,2]
[361750050,1747755049887,-677.76,0.00020999,2]
[361750051,1747755049897,-45357.17325758,0.00021,7]
[361750052,1747755049908,-10000.0,0.00021,5]
[361750053,1747755049918,-3307.94728424,0.00021,2]
[361750054,1747755049927,-4000.00708961,0.00021,2]
[361750055,1747755049937,-5000.0,0.00021,2]
[361750056,1747755049947,-3000.0,0.00021,2]
[361750057,1747755049957,-719.0,0.00021,2]
[361750058,1747755049967,-719.0,0.00021,2]
[361750059,1747755049977,-719.0,0.00021,2]
[361750060,1747755049987,-719.0,0.00021,2]
[361750061,1747755049997,-719.0,0.00021,2]
[361750062,1747755050006,-719.0,0.00021,2]
[361750063,1747755050016,-719.0,0.00021,2]
[361750064,1747755050025,-719.0,0.00021,2]
[361750065,1747755050035,-719.0,0.00021,2]
[361750066,1747755050045,-719.0,0.00021,2]
[361750067,1747755050055,-719.0,0.00021,2]
[361750068,1747755050064,-151.0,0.00021,2]
[361750069,1747755050074,-151.0,0.00021,2]
[361750070,1747755050086,-200.780902,0.00021,2]
[361750071,1747755050095,-151.0,0.00021,2]
[361750072,1747755050105,-151.0,0.00021,2]
[361750073,1747755050115,-151.0,0.00021,2]
[361750074,1747755050125,-151.0,0.00021,2]
[361750075,1747755050136,-261.719504,0.00021,2]
[361750076,1747755050146,-151.0,0.00021,2]
[361750077,1747755050156,-151.0,0.00021,2]
[361750078,1747755050167,-151.0,0.00021,2]
[361750079,1747755050176,-160.054512,0.00021,2]
[361750080,1747755050187,-160.054512,0.00021,2]
[361750081,1747755050197,-719.0,0.00021,2]
[361750082,1747755050209,-450.90932927,0.00021,2]
[361750083,1747755050220,-151.0,0.00021,2]
[361750084,1747755050230,-151.0,0.00021,2]
[361750085,1747755050240,-151.0,0.00021,2]
[361750086,1747755050250,-151.0,0.00021,2]
[361750087,1747755050260,-151.0,0.00021,2]
[361750088,1747755050270,-151.0,0.00021,2]
[361750089,1747755050280,-151.0,0.00021,2]
[361750090,1747755050289,-151.0,0.00021,2]
[361750091,1747755050300,-591.528255,0.00021,2]
[361750092,1747755050309,-591.528255,0.00021,2]
[361750093,1747755050319,-243.960544,0.00021,2]
[361750094,1747755050330,-243.960544,0.00021,2]
[361750095,1747755050341,-151.0,0.00021,2]
[361750096,1747755050352,-151.0,0.00021,2]
[361750097,1747755050366,-652.261682,0.00021,2]
[361750098,1747755050376,-652.261682,0.00021,2]
[361750099,1747755050386,-1100.229447,0.00021,2]
[361750100,1747755050397,-1100.229447,0.00021,2]
[361750101,1747755050408,-120449.64449643,0.00021,7]
[361750102,1747755050417,-151.0,0.00021,2]
[361750103,1747755050428,-158.40173,0.00021,7]
[361750104,1747755050439,-3000.0,0.0002101,2]
[361750105,1747755050449,-3000.0,0.0002102,2]
[361750106,1747755050460,-3000.0,0.0002103,2]
[361750107,1747755050469,-3000.0,0.0002104,2]
[361750108,1747755050479,-3000.0,0.0002105,2]
[361750109,1747755050489,-384.81183,0.0002105,2]
[361750110,1747755050498,-384.81183,0.0002105,2]
[361750111,1747755050508,-677.76,0.00021059,2]
[361750112,1747755050517,-3000.0,0.0002106,2]
[361750113,1747755050527,-3000.0,0.0002107,2]
[361750114,1747755050536,-3000.0,0.0002108,2]
[361750115,1747755050545,-3000.0,0.0002109,2]
[361750116,1747755050555,-434.61,0.00021095,2]
[361750117,1747755050564,-443.68,0.00021095,2]
[361750118,1747755050573,-1103.97,0.00021095,2]
[361750119,1747755050583,-786.0,0.00021095,2]
[361750120,1747755050593,-461.04,0.00021095,2]
[361750121,1747755050603,-485.08,0.00021095,2]
[361750122,1747755050612,-430.0,0.00021095,2]
[361750123,1747755050622,-883.66,0.00021095,2]
[361750124,1747755050632,-232.54,0.00021095,2]
[361750125,1747755050641,-518.35,0.00021095,2]
[361750126,1747755050653,-718.51,0.00021095,2]
[361750127,1747755050662,-5283.52,0.00021095,2]
[361750128,1747755050673,-430.0,0.00021095,2]
[361750129,1747755050684,-430.0,0.00021095,2]
[361750130,1747755050695,-980.83,0.00021095,2]
[361750131,1747755050705,-3236.06,0.00021095,2]
[361750132,1747755050715,-430.0,0.00021095,2]
[361750133,1747755050726,-430.0,0.00021095,2]
[361750134,1747755050736,-1298.05,0.00021095,2]
[361750135,1747755050748,-999.51,0.00021095,2]
[361750136,1747755050758,-1159.8,0.00021095,2]
[361750137,1747755050769,-939.83,0.00021095,2]
[361750138,1747755050779,-671.82,0.00021095,2]
[361750139,1747755050791,-677.76,0.00021099,2]
[361750140,1747755050802,-3000.0,0.000211,2]
[361750141,1747755050812,-151.0,0.000211,3]
[361750142,1747755050821,-636.0,0.000211,2]
[361750143,1747755050831,-3000.0,0.0002111,2]
[361750144,1747755050841,-652.261682,0.0002111,2]
[361750145,1747755050852,-652.261682,0.0002111,2]
[361750146,1747755050863,-1100.229447,0.0002111,2]
[361750147,1747755050873,-1100.229447,0.0002111,2]
[361750148,1747755050882,-226.5,0.0002111,2]
[361750149,1747755050892,-3000.0,0.0002112,2]
[361750150,1747755050902,-3000.0,0.0002113,2]
[361750151,1747755050911,-3000.0,0.0002114,2]
[361750152,1747755050920,-151.0,0.0002114,2]
[361750153,1747755050930,-591.528255,0.0002114,2]
[361750154,1747755050940,-591.528255,0.0002114,2]
[361750155,1747755050949,-151.0,0.0002114,2]
[361750156,1747755050959,-151.0,0.0002114,2]
[361750157,1747755050969,-3000.0,0.0002115,2]
[361750158,1747755050979,-677.76,0.00021159,2]
[361750159,1747755050988,-677.76,0.00021159,2]
[361750160,1747755050998,-677.76,0.00021159,2]
[361750161,1747755051008,-677.76,0.00021159,2]
[361750162,1747755051018,-677.96795174,0.00021159,2]
[361750163,1747755051028,-3000.0,0.0002116,2]
[361750164,1747755051037,-151.0,0.0002116,2]
[361750165,1747755051047,-228.175514,0.0002116,2]
[361750166,1747755051056,-3000.0,0.0002117,2]
[361750167,1747755051066,-151.0,0.0002117,2]
[361750168,1747755051075,-151.0,0.0002117,2]
[361750169,1747755051085,-2000.0,0.00021174,2]
[361750170,1747755051095,-151.0,0.00021174,2]
[361750171,1747755051105,-160.054512,0.00021174,2]
[361750172,1747755051115,-160.054512,0.00021174,2]
[361750173,1747755051125,-153.0,0.00021178,2]
[361750174,1747755051135,-4754.268671,0.0002118,2]
[361750175,1747755051145,-243.960544,0.0002118,2]
[361750176,1747755051156,-243.960544,0.0002118,2]
[361750177,1747755051166,-588.85841343,0.00021188,2]
[361750178,1747755051177,-6242.69140111,0.00021245,4]
[361750179,1747755051187,-500.0,0.00021288,2]
[361750180,1747755051197,-500.0,0.00021288,2]
[361750181,1747755051207,-500.0,0.00021288,2]
[361750182,1747755051217,-500.0,0.00021288,2]
[361750183,1747755051227,-500.0,0.00021288,2]
[361750184,1747755051381,-151.0,0.00021319,2]
[361750185,1747755051391,-161.318608,0.00021319,2]
[361750186,1747755051401,-151.0,0.00021319,2]
[361750187,1747755051412,-160.0,0.00021351,5]
[361750188,1747755051423,-5000.0,0.00021359,2]
[361750189,1747755051436,-257.641941,0.00021369,2]
[361750190,1747755051446,-151.0,0.00021369,2]
[361750191,1747755051455,-151.0,0.00021369,2]
[361750192,1747755051466,-434.61,0.00021369,2]
[361750193,1747755051476,-443.68,0.00021369,2]
[361750194,1747755051486,-1103.97,0.00021369,2]
[361750195,1747755051496,-786.0,0.00021369,2]
[361750196,1747755051507,-461.04,0.00021369,2]
[361750197,1747755051517,-485.08,0.00021369,2]
[361750198,1747755051527,-430.0,0.00021369,2]
[361750199,1747755051537,-883.66,0.00021369,2]
[361750200,1747755051547,-518.35,0.00021369,2]
[361750201,1747755051556,-384.81183,0.00021369,2]
[361750202,1747755051566,-384.81183,0.00021369,2]
[361750203,1747755051576,-718.51,0.00021369,2]
[361750204,1747755051586,-5283.52,0.00021369,2]
[361750205,1747755051596,-430.0,0.00021369,2]
[361750206,1747755051606,-430.0,0.00021369,2]
[361750207,1747755051615,-980.83,0.00021369,2]
[361750208,1747755051626,-3236.06,0.00021369,2]
[361750209,1747755051635,-430.0,0.00021369,2]
[361750210,1747755051645,-430.0,0.00021369,2]
[361750211,1747755051655,-1298.05,0.00021369,2]
[361750212,1747755051664,-999.51,0.00021369,2]
[361750213,1747755051674,-1159.8,0.00021369,2]
[361750214,1747755051683,-939.83,0.00021369,2]
[361750215,1747755051693,-671.82,0.00021369,2]
[361750216,1747755051703,-158.943054,0.0002137,2]
[361750217,1747755051713,-151.0,0.0002137,2]
[361750218,1747755051722,-500.0,0.0002137,2]